bitfinex/quotes_ETHUSD_20250708
["timestamp","ask_amount","ask_price","bid_price","bid_amount"]
[1752001844497,0.002,2616.0,2615.7,6.2864]
[1752001845321,3.82292224,2615.8,2615.7,0.1904]
[1752001845634,3.82296642,2615.8,2615.6,6.2824]
[1752001846423,3.8228521,2615.9,2615.6,6.2824]
[1752001847731,0.002,2616.0,2615.7,10.0]
[1752001848051,0.002,2616.0,2615.8,4.01331221]
[1752001848331,0.002,2616.0,2615.9,6.086]
[1752001850215,0.002,2616.0,2615.9,9.9087761]
[1752001850415,0.002,2616.0,2615.9,6.086]
[1752001851026,0.002,2616.0,2615.9,18.17730618]
[1752001852231,0.002,2616.0,2615.9,22.00008228]
[1752001853338,0.002,2616.0,2615.9,21.98908228]
[1752001854311,0.002,2616.0,2615.9,30.52977472]
[1752001854925,0.002,2616.0,2615.9,32.99513441]
[1752001855635,0.002,2616.0,2615.9,33.54513441]
[1752001856640,1e-08,2616.0,2615.9,33.54513441]
[1752001857137,1e-08,2616.0,2615.9,33.83119743]
[1752001859407,1e-08,2616.0,2615.9,27.75619743]
[1752001859629,1e-08,2616.0,2615.9,33.81519743]
[1752001860033,1e-08,2616.0,2615.9,6.70478228]
[1752001860238,1e-08,2616.0,2615.9,4.65170386]
[1752001860578,1e-08,2616.0,2615.9,10.70870386]
[1752001860745,1e-08,2616.0,2615.9,20.6704761]
[1752001861113,1e-08,2616.0,2615.9,10.7907]
[1752001861314,1e-08,2616.0,2615.9,16.8477]
[1752001861616,1e-08,2616.0,2615.9,22.75658799]
[1752001862509,1e-08,2616.0,2615.9,12.87681189]
[1752001862715,1e-08,2616.0,2615.9,22.75458799]
[1752001863129,1e-08,2616.0,2615.9,12.87681189]
[1752001863446,1e-08,2616.0,2615.9,6.049]
[1752001863949,1e-08,2616.0,2615.9,16.049]
[1752001864746,1e-08,2616.0,2615.9,19.8717761]
[1752001865052,1e-08,2616.0,2615.9,19.8697761]
[1752001865961,1e-08,2616.0,2615.9,20.6695761]
[1752001866156,1e-08,2616.0,2615.9,24.7094005]
[1752001866564,1e-08,2616.0,2615.9,24.7074005]
[1752001868336,1e-08,2616.0,2615.9,34.92275263]
[1752001869982,1e-08,2616.0,2615.9,4.2896244]
[1752001870259,1e-08,2616.0,2615.9,9.8627761]
[1752001871558,1e-08,2616.0,2615.9,20.07812823]
[1752001871855,1e-08,2616.0,2615.9,30.07812823]
[1752001872067,1e-08,2616.0,2615.9,30.07412823]
[1752001872364,1e-08,2616.0,2615.9,24.03812823]
[1752001872657,1e-08,2616.0,2615.9,32.9592508]
[1752001876860,1e-08,2616.0,2615.9,34.2854508]
[1752001877631,1e-08,2616.0,2615.9,24.05809867]
[1752001878159,1e-08,2616.0,2615.8,3.82284151]
[1752001878364,1e-08,2616.0,2615.9,6.024]
[1752001878564,1e-08,2616.0,2615.9,6.025]
[1752001878963,1e-08,2616.0,2615.9,19.8477761]
[1752001879265,1e-08,2616.0,2615.9,16.025]
[1752001880376,1e-08,2616.0,2615.9,18.00979076]
[1752001880675,1e-08,2616.0,2615.9,21.82756686]
[1752001881936,1e-08,2616.0,2615.9,21.82856686]
[1752001882137,1e-08,2616.0,2615.9,22.61166686]
[1752001882554,1e-08,2616.0,2615.9,18.00379076]
[1752001882764,1e-08,2616.0,2615.9,21.82656686]
[1752001883245,1e-08,2616.0,2615.9,18.00379076]
[1752001884344,1e-08,2616.0,2615.9,10.001]
[1752001884668,1e-08,2616.0,2615.9,19.8377761]
[1752001885259,3.82262997,2616.0,2615.9,0.001]
[1752001885458,4.58452997,2616.0,2615.9,0.001]
[1752001885647,4.62278568,2616.0,2615.9,0.001]
[1752001885841,4.62278568,2616.0,2614.8,0.8323]
[1752001885842,3.82400441,2615.1,2614.8,0.8323]
[1752001886045,3.8227761,2615.9,2614.9,6.017]
[1752001886046,0.7619,2615.2,2614.9,6.017]
[1752001886265,4.58578814,2615.2,2615.0,10.0]
[1752001886545,0.7619,2615.2,2614.8,0.001]
[1752001886764,3.82415789,2615.0,2614.9,6.016]
[1752001887078,3.82423802,2614.9,2614.8,0.001]
[1752001887251,3.82423802,2614.9,2614.8,6.019]
[1752001887755,3.82423802,2614.9,2614.8,0.001]
[1752001887950,0.03825571,2615.1,2614.8,6.019]
[1752001888166,0.7619,2615.2,2614.9,0.1912]
[1752001888374,4.58570833,2615.2,2615.0,6.016]
[1752001889141,4.58570833,2615.2,2615.0,6.015]
[1752001890182,4.58570833,2615.2,2614.9,0.1912]
[1752001890484,0.7543,2615.4,2615.1,10.1904]
[1752001890645,0.1904,2615.5,2615.1,0.1904]
[1752001890847,4.57753497,2615.6,2615.4,0.1904]
[1752001891588,0.7543,2615.6,2615.4,0.1904]
[1752001891945,4.57752484,2615.6,2615.4,0.1904]
[1752001892146,0.7543,2615.6,2615.4,0.1904]
[1752001892552,4.58377898,2615.8,2615.4,6.2024]
[1752001892773,4.62203469,2615.8,2615.4,6.2024]
[1752001893176,3.82307049,2615.7,2615.4,6.2024]
[1752001893375,4.62198821,2615.8,2615.4,6.2024]
[1752001893376,3.82322275,2615.6,2615.4,6.2024]
[1752001893575,3.86143911,2615.7,2615.4,6.2024]
[1752001894182,4.58374257,2615.8,2615.4,6.2024]
[1752001894546,0.7608,2615.8,2615.4,6.2024]
[1752001894750,0.7608,2615.8,2615.6,0.1904]
[1752001894950,4.59083584,2616.0,2615.6,6.1954]
[1752001895182,4.59093422,2616.0,2615.6,6.1954]
[1752001895484,3.82279666,2615.9,2615.6,6.1954]
[1752001895683,4.5909064,2616.0,2615.6,6.1954]
[1752001896265,4.62916211,2616.0,2615.6,6.1954]
[1752001897281,3.82277761,2615.9,2615.6,6.1954]
[1752001897656,3.82293372,2615.8,2615.6,6.1954]
[1752001897851,3.82285112,2615.9,2615.6,6.1954]
[1752001898266,3.82292913,2615.8,2615.6,6.1954]
[1752001899589,3.82283882,2615.9,2615.6,6.1954]
[1752001902496,3.86118294,2615.8,2615.6,0.1904]
[1752001902801,3.86118294,2615.8,2615.1,4.69]
[1752001902802,3.82342314,2615.5,2615.4,5.992]
[1752001902950,3.82365311,2615.3,2615.2,0.1904]
[1752001903152,3.82365311,2615.3,2615.2,15.994]
[1752001903354,3.82365311,2615.3,2615.2,5.994]
[1752001903562,3.82365311,2615.3,2615.2,10.0]
[1752001903878,3.86177452,2615.4,2615.2,10.0]
[1752001903879,3.86181008,2615.4,2615.2,10.0]
[1752001905395,0.1904,2615.6,2615.2,15.994]
[1752001905693,3.82336776,2615.5,2615.3,0.1904]
[1752001906004,3.82328861,2615.6,2615.4,5.991]
[1752001906214,3.82350692,2615.4,2615.2,10.0]
[1752001906377,3.86168673,2615.5,2615.3,5.99]
[1752001906701,0.1904,2615.6,2615.3,5.99]
[1752001907369,3.82328652,2615.6,2615.3,5.99]
[1752001907569,3.82328652,2615.6,2615.4,0.1904]
[1752001907798,4.58583617,2615.7,2615.4,0.1904]
[1752001908201,4.0153098,2615.9,2615.5,5.99]
[1752001908507,3.86127784,2615.8,2615.5,5.99]
[1752001908999,3.82309237,2615.7,2615.5,5.99]
[1752001909504,3.86125292,2615.8,2615.5,5.99]
[1752001909713,3.82307676,2615.7,2615.5,5.99]
[1752001910001,3.86123333,2615.8,2615.5,5.99]
[1752001910213,0.03825571,2615.8,2615.6,10.0]
[1752001910415,0.002,2615.9,2615.7,6.21363068]
[1752001910708,0.8232,2615.8,2615.0,5.986]
[1752001910890,3.82343283,2615.5,2615.0,9.81001895]
[1752001911069,0.03825571,2615.7,2615.0,5.986]
[1752001911268,3.82298345,2615.8,2615.3,3.82361283]
[1752001911503,3.82298345,2615.8,2615.2,3.82379932]
[1752001911504,3.82479559,2615.9,2615.4,10.61841647]
[1752001911672,3.82479559,2615.9,2615.5,10.0]
[1752001911872,3.82478384,2615.9,2615.6,6.03223214]
[1752001912408,0.002,2615.9,2615.6,6.03223214]
[1752001912706,0.002,2615.9,2615.6,5.994]
[1752001912890,0.002,2615.9,2615.7,10.03823068]
[1752001913108,0.002,2615.9,2615.8,5.992]
[1752001913690,0.002,2615.9,2615.8,15.992]
[1752001914677,0.002,2615.9,2615.8,19.81492224]
[1752001914874,0.002,2615.9,2615.8,10.0]
[1752001915205,0.002,2615.9,2615.8,15.989]
[1752001915999,0.002,2615.9,2615.4,1.56354122]
[1752001916202,0.002,2615.9,2615.1,10.0]
[1752001916203,0.8214,2615.6,2615.1,10.0]
[1752001916402,0.04025571,2615.9,2615.3,10.0]
[1752001916403,3.82315083,2615.7,2615.3,10.0]
[1752001916774,3.82315083,2615.7,2615.4,6.001]
[1752001917406,4.64433321,2615.8,2615.4,6.001]
[1752001917407,3.82322755,2615.6,2615.4,6.001]
[1752001917609,3.82312501,2615.7,2615.4,6.001]
[1752001917982,3.82312501,2615.7,2615.3,3.82363954]
[1752001918185,3.82312501,2615.7,2615.4,5.998]
[1752001918595,3.82322477,2615.6,2615.4,5.998]
[1752001919119,3.82341311,2615.5,2615.2,0.03823799]
[1752001919335,3.82329474,2615.6,2615.3,5.998]
[1752001919607,3.82329474,2615.6,2615.4,5.995]
[1752001919608,3.86155547,2615.6,2615.4,5.995]
[1752001919926,0.8214,2615.8,2615.4,5.995]
[1752001920216,3.82308431,2615.7,2615.4,5.995]
[1752001920390,3.8247835,2615.9,2615.5,10.7635]
[1752001920391,0.002,2615.9,2615.5,10.7635]
[1752001920572,3.82484319,2615.9,2615.6,0.1904]
[1752001920989,3.82484319,2615.9,2615.6,6.1874]
[1752001921178,0.002,2615.9,2615.7,13.82298242]
[1752001921405,0.002,2615.9,2615.8,6.1864]
[1752001921606,0.002,2615.9,2615.8,10.00932224]
[1752001921911,0.002,2615.9,2615.8,6.1864]
[1752001922410,0.002,2615.9,2615.8,20.00932224]
[1752001926386,0.002,2615.9,2615.8,16.1764]
[1752001928498,0.002,2615.9,2615.8,10.1904]
[1752001928681,0.002,2615.9,2615.8,16.1764]
[1752001928887,0.002,2615.9,2615.8,10.1904]
[1752001929115,3.8247761,2615.9,2615.8,6.1734]
[1752001929320,0.002,2615.9,2615.8,6.1734]
[1752001931789,3.8247761,2615.9,2615.8,6.1734]
[1752001932192,3.8247761,2615.9,2615.8,6.1684]
[1752001932689,3.8247761,2615.9,2615.8,6.1664]
[1752001933118,3.8247761,2615.9,2615.8,5.975]
[1752001933490,0.7621,2615.9,2615.7,0.1904]
[1752001933712,4.58488111,2615.9,2615.8,5.974]
[1752001934115,3.82292224,2615.8,2615.3,0.001]
[1752001934297,3.82292224,2615.8,2615.5,10.0]
[1752001934298,3.82317418,2615.7,2615.5,10.0]
[1752001934498,3.82317418,2615.7,2615.4,10.1904]
[1752001934725,3.82317418,2615.7,2615.5,5.975]
[1752001935112,0.22865571,2615.8,2615.4,0.1904]
[1752001935311,0.22865571,2615.8,2615.5,5.976]
[1752001935525,3.82320482,2615.7,2615.5,5.976]
[1752001935821,0.1904,2615.8,2615.6,5.973]
[1752001936005,3.82311825,2615.7,2615.6,15.973]
[1752001936201,3.82311825,2615.7,2615.6,10.0]
[1752001936430,3.82311825,2615.7,2615.6,15.973]
[1752001937024,3.82311825,2615.7,2615.6,15.972]
[1752001937224,3.82346533,2615.5,2615.4,5.971]
[1752001937531,4.01367978,2615.6,2615.4,5.971]
[1752001937705,0.03825571,2615.8,2615.4,5.971]
[1752001937706,3.82299264,2615.8,2615.4,5.971]
[1752001937893,3.86133925,2615.7,2615.4,6.1614]
[1752001938525,0.1904,2615.8,2615.4,9.9848728]
[1752001938526,4.01334372,2615.8,2615.4,9.9848728]
[1752001938700,3.82308404,2615.7,2615.4,6.1614]
[1752001939523,4.01339305,2615.8,2615.4,6.1614]
[1752001939823,4.01339305,2615.8,2615.4,9.98489154]
[1752001940124,4.01339305,2615.8,2615.4,6.1614]
[1752001940327,0.1904,2615.8,2615.4,9.98483534]
[1752001940709,3.82294378,2615.8,2615.5,0.1904]
[1752001940913,3.82294378,2615.8,2615.6,5.97]
[1752001941297,0.04025571,2615.9,2615.6,5.97]
[1752001941628,0.002,2615.9,2615.6,5.97]
[1752001941829,0.002,2615.9,2615.7,0.1904]
[1752001941997,3.8248045,2615.9,2615.8,5.966]
[1752001942636,0.002,2615.9,2615.8,5.966]
[1752001943538,0.002,2615.9,2615.8,10.78687486]
[1752001943698,0.002,2615.9,2615.8,7.15435262]
[1752001944452,0.002,2615.9,2615.8,21.01550408]
[1752001944626,0.002,2615.9,2615.8,20.97727486]
[1752001949619,0.002,2615.9,2615.8,21.77597486]
[1752001950023,0.002,2615.9,2615.8,22.32597486]
[1752001950830,1e-08,2616.0,2615.9,14.6214761]
[1752001951041,1e-08,2616.0,2615.9,23.16036858]
[1752001954336,1e-08,2616.0,2615.9,40.21902458]
[1752001954538,1e-08,2616.0,2615.9,40.76902458]
[1752001956061,1e-08,2616.0,2615.9,45.32793171]
[1752001957914,1e-08,2616.0,2615.9,49.95002458]
[1752001958848,0.0721842,2616.5,2616.4,4.63694555]
[1752001959057,0.0721842,2616.5,2616.4,36.38421139]
[1752001959253,0.0721842,2616.5,2616.4,36.57461139]
[1752001960856,0.0721842,2616.5,2616.4,32.90425457]
[1752001961624,0.0721842,2616.5,2616.4,20.15335926]
[1752001961937,0.0721842,2616.5,2616.4,15.53835926]
[1752001962141,0.0721842,2616.5,2616.4,4.88039999]
[1752001962349,0.8697842,2616.5,2616.4,10.82239999]
[1752001963233,0.8697842,2616.5,2616.4,21.18944085]
[1752001963437,0.0721842,2616.5,2616.4,27.3673953]
[1752001964557,0.0721842,2616.5,2616.4,26.49944086]
[1752001964754,0.0721842,2616.5,2616.4,29.53160147]
[1752001964962,0.0721842,2616.5,2616.4,22.98660616]
[1752001970457,0.0721842,2616.5,2616.4,27.67660615]
[1752001975364,0.0721842,2616.5,2616.4,28.22660615]
[1752001980405,0.0721842,2616.5,2616.4,28.21560615]
[1752001984807,0.0721842,2616.5,2616.4,34.76207681]
[1752001989600,0.0721842,2616.5,2616.4,39.32588449]
[1752001991506,0.0721842,2616.5,2616.4,28.28107681]
[1752001991709,0.0721842,2616.5,2616.4,34.21107681]
[1752001993001,0.0721842,2616.5,2616.4,38.77488449]
[1752001993196,0.0721842,2616.5,2616.4,25.99067833]
[1752001993544,0.0721842,2616.5,2616.4,19.94244555]
[1752001994800,0.8704842,2616.5,2616.2,4.56380768]
[1752001995002,0.8704842,2616.5,2616.3,6.1204]
[1752001995202,0.8704842,2616.5,2616.3,12.66687066]
[1752001996304,4.69239251,2616.5,2616.3,12.66687066]
[1752001996806,4.69239251,2616.5,2616.4,5.93]
[1752001998706,0.8704842,2616.5,2616.4,5.93]
[1752002001039,4.69238368,2616.5,2616.4,5.93]
[1752002002750,0.8704842,2616.5,2616.4,5.93]
[1752002003706,4.69238368,2616.5,2616.4,5.93]
[1752002003905,3.82204555,2616.4,2616.3,0.1904]
[1752002004104,0.7792,2616.3,2616.1,5.93]
[1752002004304,0.7792,2616.3,2616.2,6.54647066]
[1752002004519,0.7792,2616.3,2616.2,16.54647066]
[1752002007708,0.11043991,2616.5,2616.3,10.0]
[1752002007709,0.8432842,2616.5,2616.3,10.0]
[1752002008009,0.8432842,2616.5,2616.4,5.929]
[1752002008610,0.8432842,2616.5,2616.4,15.929]
[1752002009023,0.0721842,2616.5,2616.4,22.38080777]
[1752002009947,0.0721842,2616.5,2616.4,18.55876222]
[1752002010944,0.0721842,2616.5,2616.4,15.929]
[1752002012015,0.0721842,2616.5,2616.4,19.75104555]
[1752002014117,0.0721842,2616.5,2616.4,19.94144555]
[1752002014816,0.0721842,2616.5,2616.4,20.71844555]
[1752002015239,0.0721842,2616.5,2616.4,25.40844554]
[1752002015423,0.0721842,2616.5,2616.4,29.53614848]
[1752002015829,0.0721842,2616.5,2616.4,24.84614849]
[1752002016047,0.0721842,2616.5,2616.4,31.39261915]
[1752002019136,0.0721842,2616.5,2616.4,30.84161915]
[1752002019531,0.0721842,2616.5,2616.4,30.06361915]
[1752002021021,0.0721842,2616.5,2616.4,24.13661915]
[1752002021355,0.0721842,2616.5,2616.4,30.06361915]
[1752002022156,0.0721842,2616.5,2616.4,20.3145736]
[1752002022338,0.0721842,2616.5,2616.4,26.48591621]
[1752002023049,0.8741842,2616.5,2616.0,0.001]
[1752002023349,0.8741842,2616.5,2616.1,22.22286211]
[1752002023657,0.8741842,2616.5,2616.2,21.854]
[1752002024015,0.8741842,2616.5,2616.2,28.89866523]
[1752002024220,0.8741842,2616.5,2616.4,16.54647066]
[1752002024221,0.0721842,2616.5,2616.4,16.54647066]
[1752002024452,0.0721842,2616.5,2616.4,28.40047066]
[1752002024617,0.0721842,2616.5,2616.4,32.22251621]
[1752002026266,0.0721842,2616.5,2616.0,0.001]
[1752002026267,0.8741842,2616.5,2616.0,0.001]
[1752002026557,4.62448385,2616.1,2616.0,0.001]
[1752002026769,4.66273956,2616.1,2616.0,0.001]
[1752002027166,4.66273956,2616.1,2616.0,5.928]
[1752002029450,4.66273956,2616.1,2616.0,0.001]
[1752002029629,4.66273956,2616.1,2616.0,5.928]
[1752002031771,4.66273956,2616.1,2616.0,0.001]
[1752002031971,4.66273956,2616.1,2616.0,5.928]
[1752002032145,4.62448385,2616.1,2616.0,5.928]
[1752002032842,0.802,2616.1,2616.0,5.928]
[1752002033046,4.62448385,2616.1,2616.0,5.928]
[1752002033748,4.66273956,2616.1,2616.0,5.928]
[1752002033936,4.62448385,2616.1,2616.0,5.928]
[1752002034138,0.802,2616.1,2616.0,5.928]
[1752002034363,0.9505,2616.3,2616.0,7.19458707]
[1752002034573,0.0721842,2616.5,2616.2,10.36871626]
[1752002034753,0.0721842,2616.5,2616.3,15.928]
[1752002035060,0.0721842,2616.5,2616.4,0.1904]
[1752002035999,0.0721842,2616.5,2616.4,20.59713666]
[1752002036199,0.0721842,2616.5,2616.4,23.21142988]
[1752002039200,0.0721842,2616.5,2616.4,23.97042988]
[1752002044588,0.83295571,2617.1,2616.4,23.97042988]
[1752002044589,3.82168272,2616.7,2616.4,2.84291367]
[1752002044790,3.82168272,2616.7,2616.4,5.926]
[1752002045020,3.82168272,2616.7,2616.6,0.1904]
[1752002045190,3.82168272,2616.7,2616.6,6.1164]
[1752002045392,3.8215464,2616.8,2616.6,6.1164]
[1752002045588,3.82181334,2616.6,2616.3,10.0]
[1752002045822,3.82168341,2616.7,2616.4,5.926]
[1752002046002,3.82168341,2616.7,2616.5,10.0]
[1752002046202,3.82168341,2616.7,2616.6,5.926]
[1752002046410,4.01186604,2616.8,2616.6,5.926]
[1752002046612,3.82073672,2617.3,2616.6,5.926]
[1752002046613,3.8214171,2616.9,2616.6,6.1164]
[1752002046821,3.82148651,2616.8,2616.6,6.1164]
[1752002047618,4.57930736,2616.7,2616.6,0.1904]
[1752002047823,4.57930736,2616.7,2616.6,16.1164]
[1752002048829,3.95770298,2616.7,2616.6,6.47355908]
[1752002049035,3.82160736,2616.7,2616.6,0.54755908]
[1752002049221,3.82160736,2616.7,2616.6,6.47355908]
[1752002049424,3.82160736,2616.7,2616.6,0.35715908]
[1752002049621,4.01200736,2616.7,2616.6,0.35715908]
[1752002050037,4.36888628,2616.7,2616.2,0.1904]
[1752002050246,0.54727892,2616.7,2616.1,9.32009056]
[1752002050441,3.82182947,2616.6,2616.2,6.1164]
[1752002050652,0.35687892,2616.5,2616.2,6.1164]
[1752002050808,4.17879992,2616.5,2616.2,6.1164]
[1752002051013,0.35687892,2616.4,2616.2,6.1164]
[1752002051260,0.35687892,2616.3,2616.2,6.1164]
[1752002051929,3.82219164,2616.3,2616.2,6.47372825]
[1752002052242,4.57670482,2616.4,2616.2,6.47372825]
[1752002052435,4.57670482,2616.4,2616.3,0.35732825]
[1752002054054,3.82210482,2616.4,2616.3,6.28332825]
[1752002054343,3.82210482,2616.4,2616.3,0.35732825]
[1752002054567,4.01250482,2616.4,2616.3,0.35732825]
[1752002056430,4.01244555,2616.4,2616.3,0.35732825]
[1752002056950,0.1904,2616.4,2616.3,6.90379891]
[1752002057255,3.82191985,2616.5,2616.3,8.83489113]
[1752002057455,3.8218204,2616.6,2616.4,0.35732825]
[1752002057619,3.8218204,2616.6,2616.5,0.35732825]
[1752002058021,2.95151963,2616.6,2616.5,0.35732825]
[1752002058950,3.19997829,2616.7,2616.5,0.35732825]
[1752002059148,3.19997829,2616.7,2616.6,0.35732825]
[1752002060950,4.37359114,2616.8,2616.6,0.35732825]
[1752002061125,4.37359114,2616.8,2616.3,0.1904]
[1752002061126,4.37359114,2616.8,2616.7,0.35732825]
[1752002062035,3.32069009,2616.8,2616.7,0.35732825]
[1752002064072,3.07202392,2616.8,2616.7,0.35732825]
[1752002065948,0.1904,2616.8,2616.7,0.35732825]
[1752002066274,3.82177954,2616.6,2616.3,0.1904]
[1752002066567,3.82189948,2616.5,2616.4,0.35771008]
[1752002066975,3.82183163,2616.6,2616.4,0.35771008]
[1752002067198,3.82175342,2616.6,2616.5,0.35771008]
[1752002067379,3.8216465,2616.7,2616.5,0.35771008]
[1752002067679,3.8216465,2616.7,2616.3,0.1904]
[1752002067680,3.82175342,2616.6,2616.3,0.1904]
[1752002067843,3.82175342,2616.6,2616.4,0.35773197]
[1752002068044,3.82175342,2616.6,2616.5,0.35773197]
[1752002068045,3.82182218,2616.6,2616.5,0.35773197]
[1752002068542,0.1904,2616.8,2616.5,0.35773197]
[1752002068742,3.82160736,2616.7,2616.6,0.35773197]
[1752002068942,4.01186616,2616.8,2616.6,0.35773197]
[1752002069176,4.01186616,2616.8,2616.7,0.35773197]
[1752002071610,0.1904,2616.8,2616.3,1.008]
[1752002071905,0.1904,2616.8,2616.3,2.73817012]
[1752002071906,3.82161749,2616.7,2616.3,2.73817012]
[1752002072274,4.01191452,2616.8,2616.3,6.56025469]
[1752002072478,3.82171745,2616.7,2616.3,2.73817012]
[1752002072999,3.82175763,2616.6,2616.3,2.73817012]
[1752002074710,3.82175665,2616.6,2616.3,2.73817012]
[1752002077504,3.82169652,2616.7,2616.3,2.73817012]
[1752002077711,0.1904,2616.8,2616.4,0.69893555]
[1752002077896,0.1904,2616.8,2616.5,0.1904]
[1752002077897,0.35793666,2616.7,2616.5,0.1904]
[1752002078067,0.35793666,2616.6,2616.5,0.1904]
[1752002078578,3.82248385,2616.1,2616.0,0.001]
[1752002078772,4.18042051,2616.1,2616.0,0.001]
[1752002078978,4.18042051,2616.1,2615.8,2.81616389]
[1752002079176,4.18056906,2616.0,2615.8,2.81616389]
[1752002079480,0.35793666,2615.9,2615.8,2.81616389]
[1752002080214,0.35793666,2615.9,2615.6,6.54647066]
[1752002080402,0.35793666,2615.8,2615.6,9.6365112]
[1752002080703,0.35793666,2615.7,2615.6,19.6365112]
[1752002083107,0.35793666,2615.7,2615.6,13.09004054]
[1752002083617,3.82336073,2615.5,2615.4,0.001]
[1752002083912,4.18129739,2615.5,2615.4,0.001]
[1752002085584,3.82350692,2615.4,2615.3,0.001]
[1752002085785,4.18144358,2615.4,2615.3,0.001]
[1752002086026,4.18071902,2615.4,2615.3,0.001]
[1752002086334,4.18071902,2615.4,2615.0,0.001]
[1752002086541,3.82394554,2615.1,2615.0,0.001]
[1752002086738,4.18115764,2615.1,2615.0,0.001]
[1752002088340,4.37155764,2615.1,2615.0,0.001]
[1752002088548,4.37155764,2615.1,2614.5,0.8189]
[1752002088549,7.09408276,2615.1,2613.9,0.0701842]
[1752002088854,0.1912,2614.2,2614.1,6.54647066]
[1752002089010,0.3572121,2614.2,2614.1,6.54647066]
[1752002089336,0.3572121,2614.2,2614.1,7.21196185]
[1752002089717,0.3572121,2614.2,2614.1,11.89452429]
[1752002089912,4.01574829,2614.7,2614.1,11.85627021]
[1752002090108,0.35596137,2614.6,2614.5,6.54647066]
[1752002090340,0.35596137,2614.6,2614.5,6.73767066]
[1752002090929,0.35596137,2614.6,2614.5,13.19166083]
[1752002091260,0.35596137,2614.6,2614.2,0.1912]
[1752002091415,0.35596137,2614.6,2614.1,6.7176]
[1752002091416,3.82504138,2614.4,2614.1,6.7176]
[1752002091839,3.82513048,2614.3,2614.1,6.7266]
[1752002092144,3.82504171,2614.4,2614.1,6.7266]
[1752002092811,3.82512648,2614.3,2614.1,6.7266]
[1752002093247,3.82526203,2614.2,2614.1,6.7266]
[1752002093624,3.82519399,2614.3,2614.1,6.7266]
[1752002094214,0.35498196,2614.2,2614.1,6.7226]
[1752002094550,0.35498196,2614.2,2614.1,0.7656]
[1752002094840,0.35498196,2614.2,2614.1,6.7226]
[1752002095056,0.35498196,2614.2,2614.1,13.26907066]
[1752002095222,3.82540836,2614.1,2614.0,0.1912]
[1752002095541,4.0165347,2614.2,2614.0,11.915]
[1752002096153,4.0165347,2614.2,2614.0,18.46147066]
[1752002097440,0.1912,2614.2,2614.0,18.46147066]
[1752002098647,0.1912,2614.2,2614.0,20.72118976]
[1752002098825,0.1912,2614.4,2614.0,20.91238976]
[1752002099036,0.35431961,2614.3,2614.0,20.91238976]
[1752002099217,5.961,2614.8,2614.0,20.91238976]
[1752002099218,3.82466073,2614.7,2614.2,7.36597066]
[1752002099557,0.35428225,2614.6,2614.4,6.54647066]
[1752002099854,3.82467681,2614.6,2614.5,11.908]
[1752002100018,4.17897575,2614.6,2614.5,11.908]
[1752002100218,0.35429894,2614.6,2614.5,11.908]
[1752002100649,0.35429894,2614.6,2614.5,12.0992]
[1752002100958,0.35429894,2614.6,2614.5,14.34627059]
[1752002102957,3.82388275,2615.2,2614.7,3.82451728]
[1752002103260,3.82388275,2615.2,2614.9,6.54647066]
[1752002103261,0.35442378,2615.1,2614.9,6.54647066]
[1752002103427,9.77355538,2615.4,2615.0,12.6839]
[1752002103428,3.82359133,2615.4,2615.0,12.6839]
[1752002103622,0.35453491,2615.3,2615.2,6.54647066]
[1752002103827,0.35453491,2615.3,2615.2,18.44747066]
[1752002107160,0.35453491,2615.3,2615.2,6.54647066]
[1752002107329,0.35453491,2615.3,2615.2,12.68687066]
[1752002107531,0.35453491,2615.3,2615.2,14.03374773]
[1752002107753,0.35453491,2615.3,2615.2,17.85754705]
[1752002108126,0.35453491,2615.3,2615.2,28.67944705]
[1752002108331,0.002,2615.4,2615.2,28.67944705]
[1752002108631,0.002,2615.4,2615.3,3.82365311]
[1752002108826,0.002,2615.4,2615.3,17.11219966]
[1752002109066,0.002,2615.4,2615.3,17.88506313]
[1752002109242,0.002,2615.4,2615.3,18.43506313]
[1752002109963,0.002,2616.5,2616.1,0.8002]
[1752002110163,3.82396941,2616.5,2616.2,5.948]
[1752002110362,0.002,2616.5,2616.2,6.1384]
[1752002110662,3.82391308,2616.5,2616.2,6.1384]
[1752002110864,3.82204625,2616.4,2616.2,6.1384]
[1752002111084,3.82207106,2616.4,2615.6,0.7721]
[1752002111289,4.01315842,2616.0,2615.7,5.947]
[1752002111453,4.01304383,2616.0,2615.7,5.947]
[1752002111648,3.82232104,2616.3,2615.8,0.7643]
[1752002112085,3.82232104,2616.3,2615.9,5.95]
[1752002113273,0.002,2616.5,2615.9,5.95]
[1752002113594,0.35730919,2616.5,2615.9,5.951]
[1752002113779,3.82262996,2616.0,2615.8,5.951]
[1752002113985,3.8224005,2616.2,2615.8,5.949]
[1752002114176,3.82265012,2616.0,2615.8,5.949]
[1752002114689,3.8226462,2616.0,2615.8,5.949]
[1752002115179,3.8227761,2615.9,2615.8,5.949]
[1752002115754,3.8227761,2615.9,2615.5,10.7643]
[1752002116083,3.8227761,2615.9,2615.6,5.952]
[1752002116286,3.82269034,2616.0,2615.6,5.952]
[1752002116854,3.8227787,2615.9,2615.6,5.952]
[1752002118193,3.82297754,2615.8,2615.5,0.7643]
[1752002118393,3.82297754,2615.8,2615.7,5.945]
[1752002118772,3.82285392,2615.9,2615.7,5.945]
[1752002118972,3.82271687,2616.0,2615.7,5.945]
[1752002119173,3.82263355,2616.0,2615.7,5.945]
[1752002119605,3.82258375,2616.1,2615.7,5.945]
[1752002119757,3.82265372,2616.0,2615.7,5.945]
[1752002120801,3.82292224,2615.8,2615.5,0.7643]
[1752002121008,3.82328964,2615.6,2615.3,0.8314]
[1752002121298,3.82328964,2615.6,2615.3,6.7704]
[1752002122866,4.0135698,2615.7,2615.3,6.7704]
[1752002123090,4.0135698,2615.7,2615.3,0.8314]
[1752002123297,3.82321883,2615.6,2615.4,5.94]
[1752002123707,4.01353184,2615.7,2615.4,5.94]
[1752002124006,3.82325141,2615.6,2615.4,5.94]
[1752002124706,4.01352118,2615.7,2615.4,5.94]
[1752002125276,0.1904,2615.7,2615.4,5.94]
[1752002125571,0.1904,2615.7,2615.4,7.01853566]
[1752002125796,4.01306053,2616.0,2615.5,10.40837807]